bitfinex-derivatives/quotes_BTCF0:USTF0_20250709
["timestamp","ask_amount","ask_price","bid_price","bid_amount"]
[1752091506242,2.31077189,111680.0,111670.0,0.3205704]
[1752091506449,2.94063815,111680.0,111670.0,0.0209704]
[1752091506753,0.1790872,111650.0,111640.0,0.43543597]
[1752091506949,1.69755346,111650.0,111640.0,1.00203597]
[1752091507250,1.69755346,111650.0,111640.0,0.52156447]
[1752091507456,1.69755346,111650.0,111640.0,0.70066767]
[1752091507954,1.69755346,111650.0,111640.0,0.52156447]
[1752091508145,1.69755346,111650.0,111640.0,0.70066767]
[1752091508341,1.88215346,111650.0,111640.0,0.70066767]
[1752091508544,1.88215346,111650.0,111640.0,0.72066767]
[1752091509245,1.5022872,111650.0,111640.0,0.34916447]
[1752091509441,1.88215346,111650.0,111640.0,0.34916447]
[1752091509646,1.6825872,111650.0,111640.0,0.34916447]
[1752091510046,2.06245346,111650.0,111640.0,0.01916447]
[1752091510446,2.06245346,111650.0,111640.0,0.52566767]
[1752091510447,0.5418872,111650.0,111640.0,0.52566767]
[1752091510751,1.69895346,111650.0,111640.0,0.43749247]
[1752091511056,1.72149346,111650.0,111640.0,0.01185503]
[1752091511247,2.08689346,111650.0,111640.0,0.37185503]
[1752091511448,2.26702947,111650.0,111640.0,0.37185503]
[1752091511649,2.26702947,111650.0,111640.0,0.00185503]
[1752091512252,2.26702947,111650.0,111640.0,0.01185503]
[1752091512455,1.10785346,111650.0,111640.0,0.19095823]
[1752091512651,1.88449346,111650.0,111640.0,0.56665823]
[1752091512951,0.5428872,111650.0,111640.0,0.62405823]
[1752091513157,1.3193672,111650.0,111640.0,0.62405823]
[1752091513551,0.9585672,111650.0,111640.0,0.67405823]
[1752091514256,0.003,111650.0,111640.0,0.79405823]
[1752091514445,0.9585272,111650.0,111640.0,0.79405823]
[1752091514845,0.003,111650.0,111640.0,0.79405823]
[1752091515155,1.33823346,111650.0,111640.0,0.79405823]
[1752091515655,0.9573672,111650.0,111640.0,0.79405823]
[1752091515852,0.9573672,111650.0,111640.0,1.15485823]
[1752091516052,0.002,111650.0,111640.0,0.97485823]
[1752091516251,0.002,111650.0,111640.0,1.28485823]
[1752091516754,0.002,111650.0,111640.0,1.66472449]
[1752091516960,0.002,111650.0,111640.0,2.44060449]
[1752091517160,0.002,111650.0,111640.0,2.46434449]
[1752091517558,0.01891577,111660.0,111650.0,0.1790872]
[1752091517860,0.19798687,111660.0,111650.0,1.3127872]
[1752091518556,0.19798687,111660.0,111650.0,1.3327872]
[1752091518754,0.19798687,111660.0,111650.0,1.3555272]
[1752091519957,0.19798687,111660.0,111650.0,1.3565272]
[1752091520257,0.19798687,111660.0,111650.0,1.3337872]
[1752091520455,0.19798687,111660.0,111650.0,0.9729872]
[1752091520657,0.19798687,111660.0,111650.0,0.9749872]
[1752091520856,0.0185697,111690.0,111680.0,0.1790391]
[1752091521054,0.1975927,111690.0,111680.0,1.9590991]
[1752091521251,0.1975927,111690.0,111680.0,0.565116]
[1752091521454,0.59331868,111690.0,111680.0,0.565116]
[1752091521652,1.16049896,111690.0,111680.0,0.185816]
[1752091521853,1.38183964,111690.0,111680.0,0.185816]
[1752091522054,1.38183964,111690.0,111680.0,0.058816]
[1752091522255,1.38183964,111690.0,111680.0,0.003]
[1752091522763,1.38183964,111690.0,111680.0,0.1820391]
[1752091522964,1.36757338,111690.0,111680.0,0.1820391]
[1752091523259,0.7930097,111690.0,111680.0,0.2394391]
[1752091523464,0.7930097,111690.0,111680.0,0.6317391]
[1752091523465,0.5583927,111690.0,111680.0,0.6317391]
[1752091523664,0.5583927,111690.0,111680.0,0.6544791]
[1752091523862,0.1975927,111690.0,111680.0,0.6544791]
[1752091524168,0.1975927,111690.0,111680.0,0.8244791]
[1752091524664,0.93825896,111690.0,111680.0,0.7443391]
[1752091524867,0.93825896,111690.0,111680.0,0.6217391]
[1752091525167,0.93825896,111690.0,111680.0,0.6317391]
[1752091525168,0.61219618,111690.0,111680.0,0.6317391]
[1752091525367,0.97299618,111690.0,111680.0,0.6317391]
[1752091525554,0.59312992,111690.0,111680.0,0.6317391]
[1752091525759,1.36716992,111690.0,111680.0,0.6317391]
[1752091525962,1.3324327,111690.0,111680.0,0.6317391]
[1752091526353,1.71229896,111690.0,111680.0,0.6317391]
[1752091526961,1.71229896,111690.0,111680.0,0.3825391]
[1752091527167,1.90557896,111690.0,111680.0,0.3925391]
[1752091527368,1.00585079,111690.0,111680.0,0.4283551]
[1752091527665,0.39553809,111690.0,111680.0,0.5868391]
[1752091527855,0.1790143,111700.0,111690.0,0.179023]
[1752091528060,1.041777,111710.0,111700.0,0.179007]
[1752091528259,1.041777,111710.0,111700.0,0.214815]
[1752091528462,0.268497,111710.0,111700.0,0.607015]
[1752091528657,0.64836326,111710.0,111700.0,0.607015]
[1752091528861,1.42046819,111710.0,111700.0,0.607015]
[1752091529161,0.64730819,111710.0,111700.0,0.638607]
[1752091529362,0.268497,111710.0,111700.0,0.638607]
[1752091530169,0.64730819,111710.0,111700.0,0.638607]
[1752091530464,0.64730819,111710.0,111700.0,0.581207]
[1752091530672,1.00810819,111710.0,111700.0,0.638607]
[1752091530868,1.00905506,111710.0,111700.0,0.638607]
[1752091531366,0.629297,111710.0,111700.0,0.638607]
[1752091531569,1.80423506,111710.0,111700.0,0.4022]
[1752091531763,1.98753506,111710.0,111700.0,0.02]
[1752091531960,2.20357203,111710.0,111700.0,0.02]
[1752091532360,2.38261203,111710.0,111700.0,0.02]
[1752091532570,0.179023,111690.0,111680.0,0.6543438]
[1752091532767,1.69178106,111690.0,111680.0,0.7317438]
[1752091532965,2.07159021,111690.0,111680.0,0.4058]
[1752091533165,2.31014317,111690.0,111680.0,0.025]
[1752091533365,2.49344317,111690.0,111680.0,0.005]
[1752091534268,2.50344317,111690.0,111680.0,0.005]
[1752091534470,2.49344317,111690.0,111680.0,0.1840391]
[1752091534671,2.49344317,111690.0,111680.0,0.1860391]
[1752091535072,2.49344317,111690.0,111680.0,0.1886]
[1752091535272,2.49344317,111690.0,111680.0,0.1866]
[1752091535464,2.49344317,111690.0,111680.0,0.1886]
[1752091535862,2.49344317,111690.0,111680.0,0.20259603]
[1752091536067,2.49344317,111690.0,111680.0,0.3626391]
[1752091536471,2.49344317,111690.0,111680.0,0.5453391]
[1752091537268,2.49344317,111690.0,111680.0,0.3663]
[1752091537770,2.47090317,111690.0,111680.0,0.3663]
[1752091538077,2.49344317,111690.0,111680.0,0.3683]
[1752091538272,2.49344317,111690.0,111680.0,0.004]
[1752091539574,2.49445317,111690.0,111680.0,0.004]
[1752091542676,2.31115317,111690.0,111680.0,0.039816]
[1752091542978,2.28760317,111690.0,111680.0,0.004]
[1752091543174,2.31115317,111690.0,111680.0,0.004]
[1752091543373,2.50375317,111690.0,111680.0,0.004]
[1752091544280,2.12399511,111690.0,111680.0,0.004]
[1752091544480,2.50375317,111690.0,111680.0,0.004]
[1752091544681,2.51375317,111690.0,111680.0,0.004]
[1752091544881,2.50375317,111690.0,111680.0,0.004]
[1752091545782,2.50385162,111690.0,111680.0,0.004]
[1752091546876,2.50385162,111690.0,111680.0,0.3925]
[1752091547272,0.95244356,111690.0,111680.0,0.66639498]
[1752091547480,0.21183441,111690.0,111680.0,0.70364222]
[1752091547677,0.948023,111690.0,111680.0,0.70364222]
[1752091547975,0.179023,111690.0,111680.0,0.70364222]
[1752091548181,0.947863,111690.0,111680.0,1.07843643]
[1752091548481,0.179023,111690.0,111680.0,1.14843643]
[1752091548881,0.6740847,111700.0,111690.0,0.179023]
[1752091549087,1.4755347,111700.0,111690.0,0.4557]
[1752091549385,1.4755347,111700.0,111690.0,0.658183]
[1752091549578,1.3978895,111700.0,111690.0,0.658183]
[1752091549778,1.0370895,111700.0,111690.0,0.658183]
[1752091549984,1.3978895,111700.0,111690.0,0.658183]
[1752091550282,1.0370095,111700.0,111690.0,0.67207268]
[1752091550480,1.3978095,111700.0,111690.0,0.658183]
[1752091550680,0.6333295,111700.0,111690.0,0.658183]
[1752091550883,1.43437235,111700.0,111690.0,0.68610221]
[1752091551486,0.62137795,111700.0,111690.0,0.68610221]
[1752091551688,0.2277751,111700.0,111690.0,1.64571991]
[1752091551881,0.2277751,111700.0,111690.0,1.26690221]
[1752091552185,0.2287751,111700.0,111690.0,1.02690221]
[1752091552376,0.2287751,111700.0,111690.0,1.24690221]
[1752091553183,0.184007,111700.0,111690.0,1.24682403]
[1752091553483,0.184007,111700.0,111690.0,1.22336403]
[1752091553686,0.184007,111700.0,111690.0,1.24682403]
[1752091554076,0.184007,111700.0,111690.0,1.39682403]
[1752091554276,0.1809835,111720.0,111710.0,0.178991]
[1752091554472,0.948255,111720.0,111710.0,0.607191]
[1752091554677,0.178991,111710.0,111700.0,0.3828]
[1752091554883,0.539791,111710.0,111700.0,0.450307]
[1752091555078,0.5578087,111710.0,111700.0,0.45044085]
[1752091555381,0.9186087,111710.0,111700.0,0.21403385]
[1752091555586,1.1484139,111710.0,111700.0,0.00013385]
[1752091555883,1.1484139,111710.0,111700.0,5e-08]
[1752091555884,2.1081339,111710.0,111700.0,5e-08]
[1752091556181,2.2871739,111710.0,111700.0,0.00200005]
[1752091556383,0.1790391,111680.0,111670.0,0.2920286]
[1752091556584,1.3246168,111680.0,111670.0,0.72641784]
[1752091556785,0.9457991,111680.0,111670.0,0.72641784]
[1752091556983,0.9457991,111680.0,111670.0,0.70295784]
[1752091557192,0.9457991,111680.0,111670.0,0.72641784]
[1752091557683,0.9457991,111680.0,111670.0,1.21821784]
[1752091557891,0.2685542,111690.0,111680.0,0.1790385]
[1752091558088,1.02408745,111700.0,111690.0,0.1790225]
[1752091558089,0.64839335,111700.0,111690.0,0.1790225]
[1752091558279,1.79361105,111700.0,111690.0,0.01]
[1752091558486,2.15441105,111700.0,111690.0,0.220812]
[1752091558781,2.17796105,111700.0,111690.0,0.220812]
[1752091559290,2.17796105,111700.0,111690.0,0.02798826]
[1752091559586,2.55286105,111700.0,111690.0,0.02798826]
[1752091559778,2.58597244,111700.0,111690.0,0.03798826]
[1752091560083,2.58897244,111700.0,111690.0,0.03798826]
[1752091560780,0.1790546,111670.0,111660.0,0.3608]
[1752091560982,1.7080223,111670.0,111660.0,0.00078008]
[1752091561280,0.1790867,111650.0,111640.0,0.00185503]
[1752091561583,2.4576518,111650.0,111640.0,0.00185503]
[1752091561787,2.4576518,111650.0,111640.0,0.00179139]
[1752091561979,2.4576518,111650.0,111640.0,3e-08]
[1752091561980,3.24718781,111650.0,111640.0,3e-08]
[1752091562182,2.99718781,111650.0,111640.0,3e-08]
[1752091562487,1.47391241,111650.0,111640.0,3e-08]
[1752091562686,2.0601364,111650.0,111640.0,3e-08]
[1752091562881,2.51064029,111650.0,111640.0,3e-08]
[1752091563488,2.51064029,111650.0,111640.0,0.00100003]
[1752091563680,2.47695059,111650.0,111640.0,0.00100003]
[1752091563882,2.5107048,111650.0,111640.0,0.00100003]
[1752091565084,1.69960091,111650.0,111640.0,0.18010273]
[1752091565389,2.07817861,111650.0,111640.0,0.18010273]
[1752091565586,2.0444244,111650.0,111640.0,0.18980003]
[1752091565780,2.07814351,111650.0,111640.0,0.18980003]
[1752091565982,2.0444244,111650.0,111640.0,0.18980003]
[1752091566183,1.28073752,111650.0,111640.0,0.36890273]
[1752091566383,0.54111982,111650.0,111640.0,0.36890273]
[1752091566590,1.30579982,111650.0,111640.0,0.42630273]
[1752091566791,1.68461752,111650.0,111640.0,0.05840003]
[1752091567188,2.50243913,111650.0,111640.0,0.00100003]
[1752091567385,2.50243913,111650.0,111640.0,3e-08]
[1752091567386,2.68233913,111650.0,111640.0,3e-08]
[1752091567591,1.91765913,111650.0,111640.0,3e-08]
[1752091567885,2.71580552,111650.0,111640.0,3e-08]
[1752091568191,2.33698782,111650.0,111640.0,3e-08]
[1752091568591,1.95136552,111650.0,111640.0,3e-08]
[1752091568794,1.95809012,111650.0,111640.0,3e-08]
[1752091568986,2.33678782,111650.0,111640.0,3e-08]
[1752091569582,1.57254782,111650.0,111640.0,3e-08]
[1752091569790,1.21351181,111650.0,111640.0,3e-08]
[1752091569990,1.97763181,111650.0,111640.0,0.39030003]
[1752091570185,1.59881411,111650.0,111640.0,0.39030003]
[1752091570393,1.97755181,111650.0,111640.0,0.39030003]
[1752091570689,1.78797181,111650.0,111640.0,0.56940283]
[1752091570889,1.78797181,111650.0,111640.0,0.39030003]
[1752091571396,1.78791939,111650.0,111640.0,3e-08]
[1752091571584,2.16921939,111650.0,111640.0,3e-08]
[1752091571787,1.40525939,111650.0,111640.0,0.37320283]
[1752091571987,1.75390542,111650.0,111640.0,0.25150003]
[1752091572200,1.75390542,111650.0,111640.0,0.62680283]
[1752091572383,1.75390542,111650.0,111640.0,0.44770003]
[1752091573285,2.13790542,111650.0,111640.0,0.44770003]
[1752091573693,2.14790542,111650.0,111640.0,0.44770003]
[1752091573899,2.13790542,111650.0,111640.0,0.44770003]
[1752091574581,1.37430542,111650.0,111640.0,0.44770003]
[1752091574783,1.75338542,111650.0,111640.0,0.39030003]
[1752091574983,1.75338542,111650.0,111640.0,3e-08]
[1752091575182,2.26225913,111650.0,111640.0,3e-08]
[1752091575389,2.72888829,111650.0,111640.0,3e-08]
[1752091575586,2.72884829,111650.0,111640.0,3e-08]
[1752091575780,3.10884829,111650.0,111640.0,3e-08]
[1752091575983,2.72884829,111650.0,111640.0,3e-08]
[1752091576587,3.05876829,111650.0,111640.0,3e-08]
[1752091576787,2.72876829,111650.0,111640.0,3e-08]
[1752091576994,3.10876829,111650.0,111640.0,3e-08]
[1752091577196,3.09876829,111650.0,111640.0,3e-08]
[1752091577594,1.97077289,111650.0,111640.0,3e-08]
[1752091577791,3.05840829,111650.0,111640.0,3e-08]
[1752091577991,2.72840829,111650.0,111640.0,3e-08]
[1752091578185,2.17033458,111650.0,111640.0,3e-08]
[1752091578893,2.34947059,111650.0,111640.0,3e-08]
[1752091579189,0.9367383,111640.0,111630.0,0.00179155]
[1752091579387,1.70110746,111640.0,111630.0,0.00179155]
[1752091579584,1.88025946,111640.0,111630.0,0.00179155]
[1752091580297,1.88149258,111640.0,111630.0,0.00179155]
[1752091580700,1.88149258,111640.0,111630.0,0.00379155]
[1752091581994,1.90149258,111640.0,111630.0,0.00379155]
[1752091582497,1.89149258,111640.0,111630.0,0.00379155]
[1752091582799,1.88149258,111640.0,111630.0,0.00379155]
[1752091583589,1.88149258,111640.0,111630.0,0.00479155]
[1752091584685,1.70234058,111640.0,111630.0,0.00479155]
[1752091584894,1.33244058,111640.0,111630.0,0.23652355]
[1752091585090,2.09376058,111640.0,111630.0,0.43462355]
[1752091585494,2.09376058,111640.0,111630.0,0.39879155]
[1752091585691,2.09376058,111640.0,111630.0,0.45619155]
[1752091586491,1.42120746,111640.0,111630.0,0.45619155]
[1752091586692,2.09426649,111640.0,111630.0,0.47019438]
[1752091587593,2.64772649,111640.0,111630.0,0.38795725]
[1752091587792,0.1791189,111630.0,111620.0,0.00397562]
[1752091587994,1.49095919,111630.0,111620.0,0.01392501]
[1752091588197,0.179151,111610.0,111600.0,2e-08]
[1752091588396,4.01129556,111610.0,111600.0,2e-08]
[1752091588596,3.69355459,111610.0,111600.0,2e-08]
[1752091588797,3.31469689,111610.0,111600.0,2e-08]
[1752091589098,3.31469689,111610.0,111600.0,0.12640092]
[1752091589300,0.1791671,111600.0,111590.0,0.00179219]
[1752091589595,1.33127166,111600.0,111590.0,9e-08]
[1752091589802,0.57597529,111600.0,111590.0,9e-08]
[1752091589998,2.05990153,111600.0,111590.0,9e-08]
[1752091590304,1.68104383,111600.0,111590.0,9e-08]
[1752091590501,0.92112383,111600.0,111590.0,0.18018329]
[1752091590694,0.18150613,111600.0,111590.0,0.18018329]
[1752091590895,0.18150613,111600.0,111590.0,0.39268329]
[1752091591195,0.94122613,111600.0,111590.0,0.75348329]
[1752091591704,1.752108,111610.0,111590.0,1.16203339]
[1752091591900,0.2239559,111610.0,111600.0,0.7375671]
[1752091592100,0.84783848,111620.0,111600.0,0.9119356]
[1752091592306,0.2239583,111610.0,111600.0,0.7143356]
[1752091592808,0.1791671,111610.0,111600.0,0.9643356]
[1752091593195,0.24370543,111620.0,111610.0,0.179151]
[1752091593394,1.41585595,111620.0,111610.0,0.209151]
[1752091593701,1.41585595,111620.0,111610.0,0.233321]
[1752091593702,0.23193425,111620.0,111610.0,0.233321]
[1752091593907,0.99109425,111620.0,111610.0,0.594121]
[1752091594092,0.99109425,111620.0,111610.0,0.564121]
[1752091594297,0.05579575,111620.0,111610.0,0.734121]
[1752091594502,0.02178293,111620.0,111610.0,0.734121]
[1752091594903,0.02178293,111620.0,111610.0,0.923421]
[1752091595400,0.05583529,111620.0,111610.0,1.108421]
[1752091595896,0.05783529,111620.0,111610.0,2.1264227]
[1752091596100,0.02378293,111620.0,111610.0,2.1264227]
[1752091596597,0.20291793,111620.0,111610.0,1.747605]
[1752091596796,0.02500719,111620.0,111610.0,1.318421]
[1752091597102,0.02300719,111620.0,111610.0,1.500605]
[1752091597406,0.05407032,111620.0,111610.0,1.8824227]
[1752091597592,0.05407032,111620.0,111610.0,1.7524227]
[1752091597792,0.03542124,111620.0,111610.0,2.1124227]
[1752091597998,0.21455604,111620.0,111610.0,0.943621]
[1752091598208,0.59337374,111620.0,111610.0,0.940621]
[1752091598402,0.59337374,111620.0,111610.0,1.273421]
[1752091598701,0.03542124,111620.0,111610.0,1.272751]
[1752091598908,0.03542124,111620.0,111610.0,1.6515687]
[1752091599298,0.03542124,111620.0,111610.0,1.272751]
[1752091599708,0.21455604,111620.0,111610.0,1.272751]
[1752091600200,0.21455604,111620.0,111610.0,1.28674258]
[1752091600408,0.03542124,111620.0,111610.0,1.28674258]
[1752091600599,0.21455614,111620.0,111610.0,1.28674258]
[1752091601304,0.21455446,111620.0,111610.0,0.92594258]
[1752091601507,0.59337216,111620.0,111610.0,0.92594258]
[1752091601801,1.71157216,111620.0,111610.0,0.51679158]
[1752091602003,1.90907216,111620.0,111610.0,0.51679158]
[1752091602220,1.90907216,111620.0,111610.0,0.67244248]
[1752091602511,1.71157216,111620.0,111610.0,0.67244248]
[1752091602809,1.71157216,111620.0,111610.0,0.49329158]
[1752091603003,1.71157216,111620.0,111610.0,0.68527962]
[1752091603203,1.71157216,111620.0,111610.0,0.31682872]
[1752091603404,1.71157216,111620.0,111610.0,0.39314248]
[1752091603706,0.21455446,111620.0,111610.0,0.41664248]
[1752091603906,1.33239446,111620.0,111610.0,0.60634248]
[1752091604111,1.3320797,111620.0,111610.0,0.60634248]
[1752091604500,1.3320797,111620.0,111610.0,0.79634248]
[1752091604501,1.7108974,111620.0,111610.0,0.79634248]
[1752091604905,1.3320797,111620.0,111610.0,0.79634248]
[1752091605201,1.7108974,111620.0,111610.0,0.79634248]
[1752091605614,1.3500974,111620.0,111610.0,0.79634248]
[1752091605902,1.7108974,111620.0,111610.0,0.79634248]
[1752091606912,1.7108974,111620.0,111610.0,0.59634248]
[1752091607215,1.7108974,111620.0,111610.0,0.84634248]
[1752091607505,0.9712797,111620.0,111610.0,0.84634248]
[1752091607697,1.7108974,111620.0,111610.0,0.84634248]
[1752091608208,0.9712797,111620.0,111610.0,0.84634248]
[1752091608404,0.9712797,111620.0,111610.0,0.79634248]
[1752091609005,1.3320797,111620.0,111610.0,0.79634248]
[1752091609603,0.9712797,111620.0,111610.0,0.79634248]
[1752091609808,0.7921448,111620.0,111610.0,1.15714248]
[1752091610106,0.9712796,111620.0,111610.0,1.15714248]
[1752091610612,0.9712796,111620.0,111610.0,0.79634248]
[1752091612001,1.7108973,111620.0,111610.0,0.71634248]
[1752091612904,1.7108973,111620.0,111610.0,0.13899158]
[1752091613104,2.0974973,111620.0,111610.0,0.13899158]
[1752091613308,2.0974973,111620.0,111610.0,0.31814248]
[1752091614009,2.0974973,111620.0,111610.0,0.34164248]
[1752091614213,1.7186796,111620.0,111610.0,0.34164248]
[1752091614401,2.0974973,111620.0,111610.0,0.34164248]
[1752091614804,2.0974973,111620.0,111610.0,0.31814248]
[1752091615111,2.0974973,111620.0,111610.0,0.3021509]
[1752091615112,2.0994973,111620.0,111610.0,0.3021509]
[1752091615611,2.0994973,111620.0,111610.0,0.3256509]
[1752091615802,2.1024973,111620.0,111610.0,0.3226509]
[1752091616005,2.06875061,111620.0,111610.0,0.3226509]
[1752091616616,2.06875061,111620.0,111610.0,0.12]
[1752091617112,0.1791509,111610.0,111600.0,0.6666367]
[1752091617315,0.7528686,111610.0,111600.0,0.9766367]
[1752091617517,0.7528686,111610.0,111600.0,0.9932067]
[1752091617717,1.5067086,111610.0,111600.0,0.7680155]
[1752091617906,1.70323286,111610.0,111600.0,0.7680155]
[1752091618106,2.06403286,111610.0,111600.0,0.5505155]
[1752091618307,2.06503286,111610.0,111600.0,0.505737]
[1752091618503,2.06503286,111610.0,111600.0,0.33657]
[1752091618708,2.06503286,111610.0,111600.0,0.515737]
[1752091618915,1.70423286,111610.0,111600.0,0.515737]
[1752091619908,2.06503286,111610.0,111600.0,0.515737]
[1752091620221,1.68621516,111610.0,111600.0,0.515737]
[1752091620712,2.06503286,111610.0,111600.0,0.33657]
[1752091620914,2.06503286,111610.0,111600.0,0.515737]
[1752091621309,2.06503286,111610.0,111600.0,0.33657]
[1752091621506,0.179167,111600.0,111590.0,9e-08]
[1752091621709,1.7072724,111600.0,111590.0,0.35000009]
[1752091621909,1.70849666,111600.0,111590.0,0.35000009]
[1752091622110,1.70849666,111600.0,111590.0,0.38000009]
[1752091622604,0.95086126,111600.0,111590.0,0.38100009]
[1752091622810,1.31310896,111600.0,111590.0,0.38100009]
[1752091623011,1.68705126,111600.0,111590.0,0.56018309]
[1752091623212,2.06582896,111600.0,111590.0,0.56018309]
[1752091623412,2.06582896,111600.0,111590.0,0.54018309]
[1752091623715,2.06574896,111600.0,111590.0,0.36100009]
[1752091623914,2.06566896,111600.0,111590.0,0.54018319]
[1752091624218,0.1792152,111570.0,111560.0,0.33893048]
[1752091624517,1.2924552,111570.0,111560.0,1.05692318]
[1752091624706,0.2240154,111580.0,111570.0,0.1792152]
[1752091624908,0.9763971,111590.0,111580.0,0.1791991]
[1752091625115,0.9763971,111590.0,111580.0,0.51797484]
[1752091625312,0.9762371,111590.0,111580.0,0.89617484]
[1752091625617,1.7158548,111590.0,111580.0,0.34]
[1752091625817,2.2578548,111590.0,111580.0,0.2404253]
[1752091626022,2.2578548,111590.0,111580.0,0.1642165]
[1752091626222,0.1792152,111570.0,111560.0,0.00179268]
[1752091626409,2.7837129,111570.0,111560.0,0.00179268]
[1752091626719,2.7837129,111570.0,111560.0,0.33635768]
[1752091626918,3.3445306,111570.0,111560.0,0.25671098]
[1752091627118,0.1792312,111560.0,111550.0,0.00548381]
[1752091627424,1.6714666,111560.0,111550.0,0.26548381]
[1752091627810,1.6714666,111560.0,111550.0,0.12886621]
[1752091628014,0.1792794,111530.0,111520.0,0.00179332]
[1752091628214,2.4223371,111530.0,111520.0,0.00179332]
[1752091628414,2.6172371,111530.0,111520.0,0.00179332]
[1752091629316,2.4223371,111530.0,111520.0,0.00179332]
[1752091629618,2.6172371,111530.0,111520.0,0.00179332]
[1752091629918,0.4952576,111540.0,111530.0,0.1792794]
[1752091630219,1.426017,111540.0,111530.0,0.3821794]
[1752091630422,0.4504296,111550.0,111530.0,0.7756177]
[1752091630615,0.1792473,111550.0,111540.0,0.6513904]
[1752091630929,0.1792473,111550.0,111540.0,1.0013904]
[1752091631819,0.9304073,111550.0,111540.0,1.0013904]
[1752091632016,0.1792473,111550.0,111540.0,1.0013904]
[1752091632227,0.61125535,111560.0,111550.0,0.1792473]
[1752091632525,1.3805606,111570.0,111560.0,0.1792312]
[1752091632717,1.45392037,111570.0,111560.0,0.5092312]
[1752091632913,1.45392037,111570.0,111560.0,0.9153412]
[1752091633118,1.45384037,111570.0,111560.0,0.9553412]
[1752091633326,1.04823317,111570.0,111560.0,0.9553412]
[1752091633514,1.40903317,111570.0,111560.0,0.9553412]
[1752091633720,1.78785087,111570.0,111560.0,0.77611]
[1752091634016,1.03701087,111570.0,111560.0,0.374]
[1752091634217,1.97207087,111570.0,111560.0,0.344]
[1752091634419,2.16387087,111570.0,111560.0,0.346]
[1752091634620,1.41331087,111570.0,111560.0,0.346]
[1752091634821,2.16375087,111570.0,111560.0,0.346]
[1752091635328,2.16371087,111570.0,111560.0,0.346]
[1752091635622,2.16371087,111570.0,111560.0,0.5295]
[1752091636127,1.41331087,111570.0,111560.0,0.5295]
[1752091636325,2.16343087,111570.0,111560.0,0.346]
[1752091636514,2.54224857,111570.0,111560.0,0.2912077]
[1752091636721,2.16343087,111570.0,111560.0,0.2912077]
[1752091637022,2.54224857,111570.0,111560.0,0.2912077]
[1752091637628,2.16343087,111570.0,111560.0,0.2912077]
[1752091637821,1.41331087,111570.0,111560.0,0.332]
[1752091638017,2.16307087,111570.0,111560.0,0.5112312]
[1752091638328,1.97127087,111570.0,111560.0,0.6947312]
[1752091638519,1.97127087,111570.0,111560.0,0.8794312]
[1752091638721,1.97119087,111570.0,111560.0,0.8794312]
[1752091639027,1.22151087,111570.0,111560.0,0.8794312]
[1752091639228,1.97111087,111570.0,111560.0,0.7002]
[1752091640028,1.59229317,111570.0,111560.0,0.7002]
[1752091640228,1.97083087,111570.0,111560.0,0.7002]
[1752091640830,1.78633087,111570.0,111560.0,0.8794312]
[1752091641028,1.03701087,111570.0,111560.0,0.9030412]
[1752091641227,1.78625087,111570.0,111560.0,0.7002]
[1752091641425,1.78625087,111570.0,111560.0,0.8794312]
[1752091641625,1.03701087,111570.0,111560.0,0.8794312]
[1752091641830,1.78601087,111570.0,111560.0,0.8794312]
[1752091642031,1.78601087,111570.0,111560.0,0.9030412]
[1752091642032,0.65819317,111570.0,111560.0,0.9030412]
[1752091642229,1.40707317,111570.0,111560.0,0.8930412]
[1752091642431,1.40707317,111570.0,111560.0,0.9330412]
[1752091643431,1.40707317,111570.0,111560.0,0.8830412]
[1752091644132,0.65819317,111570.0,111560.0,0.8830412]
[1752091644329,0.19779249,111580.0,111570.0,0.1792152]
[1752091644527,1.30699249,111580.0,111570.0,0.7054252]
[1752091644727,1.30699249,111580.0,111570.0,0.8975252]
[1752091644928,0.94619249,111580.0,111570.0,0.8975252]
[1752091645530,1.67243603,111590.0,111580.0,0.1791991]
[1752091645730,2.59973903,111590.0,111580.0,0.72831]
[1752091646034,2.97855673,111590.0,111580.0,0.9075091]
[1752091646427,2.59973903,111590.0,111580.0,0.9075091]
[1752091646633,2.60173903,111590.0,111580.0,0.9075091]
[1752091646927,0.61509903,111590.0,111580.0,0.5875091]
[1752091647134,1.36313903,111590.0,111580.0,0.9275091]
[1752091647434,0.93011746,111590.0,111580.0,0.9275091]
[1752091647733,1.29091746,111590.0,111580.0,0.9275091]
[1752091648129,0.92193516,111590.0,111580.0,0.5191991]
[1752091648335,1.29067746,111590.0,111580.0,0.8892991]
[1752091649738,1.28867746,111590.0,111580.0,0.8962991]
[1752091649932,0.54111746,111590.0,111580.0,0.8962991]
[1752091650127,0.00113446,111590.0,111580.0,0.8962991]
[1752091650333,0.00113446,111590.0,111580.0,1.6359168]
[1752091650540,0.92735746,111590.0,111580.0,1.6359168]
[1752091650739,0.18031746,111590.0,111580.0,1.2570991]
[1752091650940,0.92735746,111590.0,111580.0,1.2570991]
[1752091651142,0.17931746,111590.0,111580.0,1.2630991]
[1752091651736,0.17931746,111590.0,111580.0,1.2867091]
[1752091651939,0.17931746,111590.0,111580.0,1.2767091]
[1752091653741,0.17931746,111590.0,111580.0,1.5713091]
[1752091654243,0.00013446,111590.0,111580.0,1.5713091]
[1752091654636,0.00013446,111590.0,111580.0,1.9501268]
[1752091655436,0.91893516,111590.0,111580.0,0.9159091]
[1752091655636,0.91893516,111590.0,111580.0,0.8922991]
[1752091655637,0.54011746,111590.0,111580.0,0.8922991]
[1752091655836,0.91893516,111590.0,111580.0,0.8922991]
[1752091656933,0.91893516,111590.0,111580.0,0.5268]
[1752091657138,1.29213516,111590.0,111580.0,0.5168]
[1752091657338,1.29213516,111590.0,111580.0,0.695999]
[1752091657738,1.29213516,111590.0,111580.0,0.5168]
[1752091658245,1.29213516,111590.0,111580.0,0.6959991]
[1752091658436,0.91331746,111590.0,111580.0,0.6859991]
[1752091658632,1.29213516,111590.0,111580.0,0.6859991]
[1752091659039,1.29213516,111590.0,111580.0,0.5068]
[1752091659243,1.29213516,111590.0,111580.0,0.323]
[1752091660545,1.29213516,111590.0,111580.0,0.5139]
[1752091661843,0.0448072,111570.0,111540.0,0.2688861]
[1752091662048,0.918865,111550.0,111540.0,0.20856]
[1752091662259,2.407625,111550.0,111540.0,0.2542]
[1752091662640,2.0288073,111550.0,111540.0,0.7074234]
[1752091662946,1.2843273,111550.0,111540.0,0.9374234]
[1752091663142,1.2843273,111550.0,111540.0,0.5874234]
[1752091663340,1.302345,111550.0,111540.0,0.5924234]
[1752091663545,1.302345,111550.0,111540.0,0.8624234]
[1752091663745,1.307345,111550.0,111540.0,0.5934234]
[1752091663942,0.9284873,111550.0,111540.0,0.5934234]
[1752091664248,0.9284873,111550.0,111540.0,1.3015371]
[1752091664249,0.005,111550.0,111540.0,1.3015371]
[1752091664450,0.005,111550.0,111540.0,1.6623371]
[1752091664848,0.007,111550.0,111540.0,1.6573371]
[1752091665045,0.007,111550.0,111540.0,1.2965371]